[Event "*** Titled Tuesday 3|2 Blitz"]
[Site "Chess.com"]
[Date "2016.10.04"]
[Round "5"]
[White "biostatistician"]
[Black "kikydu96"]
[Result "1-0"]
[WhiteElo "2439"]
[BlackElo "2295"]
[TimeControl "180+2"]
[EndTime "12:02:01 PDT"]
[Termination "biostatistician won by resignation"]

1. d4 {[%clk 0:03:02]} 1... d5 {[%clk 0:03:00.5]} 2. Nf3 {[%clk 0:03:03.9]} 2...
Nf6 {[%clk 0:03:01.3]} 3. c4 {[%clk 0:03:05.2]} 3... c6 {[%clk 0:03:02.5]} 4.
cxd5 {[%clk 0:03:06.4]} 4... cxd5 {[%clk 0:03:03.3]} 5. Nc3 {[%clk 0:03:08.3]}
5... Nc6 {[%clk 0:03:04.5]} 6. Bf4 {[%clk 0:03:09.8]} 6... Bf5 {[%clk
0:03:05.3]} 7. e3 {[%clk 0:03:10.3]} 7... e6 {[%clk 0:03:06.3]} 8. Qb3 {[%clk
0:03:11.5]} 8... Bb4 {[%clk 0:03:05]} 9. Bb5 {[%clk 0:03:13]} 9... O-O {[%clk
0:02:44.8]} 10. O-O {[%clk 0:03:13]} 10... Be7 {[%clk 0:02:41.5]} 11. Rfc1
{[%clk 0:03:05]} 11... Na5 {[%clk 0:02:38.2]} 12. Qd1 {[%clk 0:03:00.9]} 12...
a6 {[%clk 0:02:39.4]} 13. Be2 {[%clk 0:02:55.5]} 13... b5 {[%clk 0:02:32.7]} 14.
Ne5 {[%clk 0:02:49.8]} 14... Rc8 {[%clk 0:02:30.4]} 15. a4 {[%clk 0:02:45.3]}
15... b4 {[%clk 0:02:29.4]} 16. Na2 {[%clk 0:02:46.2]} 16... Qb6 {[%clk
0:02:17.4]} 17. Rxc8 {[%clk 0:02:35.2]} 17... Rxc8 {[%clk 0:02:11.7]} 18. Rc1
{[%clk 0:02:37.1]} 18... Rxc1 {[%clk 0:01:51.7]} 19. Qxc1 {[%clk 0:02:37.8]}
19... Qb7 {[%clk 0:01:53.1]} 20. h3 {[%clk 0:02:27.3]} 20... h6 {[%clk
0:01:53.4]} 21. Qf1 {[%clk 0:02:21.3]} 21... g5 {[%clk 0:01:39.1]} 22. Bh2
{[%clk 0:02:19.7]} 22... Bc2 {[%clk 0:01:26.8]} 23. Bxa6 {[%clk 0:02:19.1]}
23... Qb6 {[%clk 0:01:25.2]} 24. Bb5 {[%clk 0:02:19.8]} 24... Nb7 {[%clk
0:01:17]} 25. Qe2 {[%clk 0:02:11.8]} 25... Bb1 {[%clk 0:01:10.8]} 26. Nc1 {[%clk
0:02:10.3]} 26... Nd6 {[%clk 0:01:06.2]} 27. Nb3 {[%clk 0:02:01.2]} 27... Nfe4
{[%clk 0:00:54.2]} 28. Qd1 {[%clk 0:01:28.3]} 28... Nxb5 {[%clk 0:00:42]} 29.
Qxb1 {[%clk 0:01:24.6]} 29... Nbd6 {[%clk 0:00:38.5]} 30. Qc2 {[%clk 0:01:24.7]}
30... f6 {[%clk 0:00:32.5]} 31. Nd7 {[%clk 0:01:25.1]} 31... Qa7 {[%clk
0:00:29.2]} 32. Nbc5 {[%clk 0:01:22.6]} 32... Nxc5 {[%clk 0:00:15.8]} 33. Qg6+
{[%clk 0:01:22.3]} 33... Kh8 {[%clk 0:00:14.7]} 34. Qxh6+ {[%clk 0:01:24.2]}
34... Kg8 {[%clk 0:00:15.9]} 35. Qg6+ {[%clk 0:01:24.6]} 35... Kh8 {[%clk
0:00:15.5]} 36. Nxc5 {[%clk 0:01:20.2]} 36... Nf5 {[%clk 0:00:14.3]} 37. Nxe6
{[%clk 0:00:50]} 37... Qxa4 {[%clk 0:00:14.1]} 38. Bc7 {[%clk 0:00:50.6]} 38...
Qd1+ {[%clk 0:00:04.7]} 39. Kh2 {[%clk 0:00:51.2]} 1-0

[Event "*** Titled Tuesday 3|2 Blitz"]
[Site "Chess.com"]
[Date "2016.10.04"]
[Round "5"]
[White "bugsbunny444"]
[Black "Tash_Boy"]
[Result "0-1"]
[WhiteElo "2331"]
[BlackElo "2449"]
[TimeControl "180+2"]
[EndTime "12:02:02 PDT"]
[Termination "Tash_Boy won by resignation"]

1. Nf3 {[%clk 0:03:02]} 1... Nf6 {[%clk 0:02:39.7]} 2. c4 {[%clk 0:03:02.7]}
2... g6 {[%clk 0:02:32.8]} 3. b4 {[%clk 0:03:03.8]} 3... Bg7 {[%clk 0:02:34.2]}
4. Bb2 {[%clk 0:03:05.5]} 4... O-O {[%clk 0:02:35.8]} 5. g3 {[%clk 0:03:07]}
5... d6 {[%clk 0:02:37.4]} 6. Bg2 {[%clk 0:03:08.5]} 6... e5 {[%clk 0:02:38.8]}
7. O-O {[%clk 0:03:10.2]} 7... a5 {[%clk 0:02:40.3]} 8. b5 {[%clk 0:03:11.6]}
8... Nbd7 {[%clk 0:02:40.6]} 9. d3 {[%clk 0:03:12.7]} 9... Nc5 {[%clk
0:02:40.9]} 10. Nc3 {[%clk 0:03:13.7]} 10... Be6 {[%clk 0:02:34.7]} 11. Nd2
{[%clk 0:03:14.3]} 11... Qd7 {[%clk 0:02:35.2]} 12. Ba3 {[%clk 0:03:11.7]} 12...
Rab8 {[%clk 0:02:19.9]} 13. Bxc5 {[%clk 0:03:11]} 13... dxc5 {[%clk 0:02:20.4]}
14. Rb1 {[%clk 0:03:12.7]} 14... b6 {[%clk 0:02:20.5]} 15. Nde4 {[%clk
0:03:05.5]} 15... Bh3 {[%clk 0:02:18.1]} 16. Nxf6+ {[%clk 0:02:59.9]} 16... Bxf6
{[%clk 0:02:18.6]} 17. Nd5 {[%clk 0:03:01.1]} 17... Bg7 {[%clk 0:02:18.1]} 18.
Bxh3 {[%clk 0:02:56.5]} 18... Qxh3 {[%clk 0:02:18.5]} 19. Nxc7 {[%clk
0:02:55.9]} 19... f5 {[%clk 0:02:16.6]} 20. e4 {[%clk 0:01:55.1]} 20... f4
{[%clk 0:02:15.4]} 21. Qf3 {[%clk 0:01:55.6]} 21... g5 {[%clk 0:02:08.3]} 22.
Qg2 {[%clk 0:01:51.6]} 22... Qd7 {[%clk 0:02:07.7]} 23. Nd5 {[%clk 0:01:45.6]}
23... f3 {[%clk 0:02:08.8]} 24. Qh1 {[%clk 0:01:45.2]} 24... Qh3 {[%clk
0:02:04.3]} 25. Rfe1 {[%clk 0:01:16.3]} 25... g4 {[%clk 0:02:03.1]} 26. Rbd1
{[%clk 0:00:50.9]} 26... Kh8 {[%clk 0:01:59.9]} 27. a4 {[%clk 0:00:51.4]} 27...
Rfe8 {[%clk 0:01:59.3]} 28. Ne3 {[%clk 0:00:28.3]} 28... Rbd8 {[%clk 0:01:49.9]}
29. Nd5 {[%clk 0:00:28.1]} 29... Re6 {[%clk 0:01:49.2]} 30. Re3 {[%clk
0:00:22.4]} 30... Rf8 {[%clk 0:01:46.8]} 31. Ree1 {[%clk 0:00:20.6]} 31... Bh6
{[%clk 0:01:45.1]} 32. Nc7 {[%clk 0:00:17.6]} 32... Rg6 {[%clk 0:01:42.2]} 33.
Nd5 {[%clk 0:00:18.9]} 33... Bg5 {[%clk 0:01:43.3]} 34. Rf1 {[%clk 0:00:17.5]}
34... Rh6 {[%clk 0:01:43.6]} 35. Rfe1 {[%clk 0:00:18.7]} 35... Re8 {[%clk
0:01:42.9]} 36. Rf1 {[%clk 0:00:19.8]} 36... Ree6 {[%clk 0:01:43.6]} 37. Rfe1
{[%clk 0:00:20.5]} 37... Rh5 {[%clk 0:01:44.2]} 38. Ne3 {[%clk 0:00:14.9]} 38...
Bxe3 {[%clk 0:01:38.2]} 39. fxe3 {[%clk 0:00:16.1]} 39... Reh6 {[%clk
0:01:31.7]} 40. Rd2 {[%clk 0:00:13.3]} 40... Qxg3+ {[%clk 0:01:32.7]} 41. Kf1
{[%clk 0:00:13.8]} 41... Rxh2 {[%clk 0:01:29.1]} 42. Rxh2 {[%clk 0:00:14.1]}
42... Rxh2 {[%clk 0:01:30.5]} 43. Qg1 {[%clk 0:00:15.4]} 43... Qh3+ {[%clk
0:01:32]} 0-1

[Event "*** Titled Tuesday 3|2 Blitz"]
[Site "Chess.com"]
[Date "2016.10.04"]
[Round "5"]
[White "Sven_Tica"]
[Black "Blitzstream"]
[Result "0-1"]
[WhiteElo "2384"]
[BlackElo "2544"]
[TimeControl "180+2"]
[EndTime "12:02:18 PDT"]
[Termination "Blitzstream won by resignation"]

1. d4 {[%clk 0:03:01.9]} 1... Nf6 {[%clk 0:02:59.6]} 2. c4 {[%clk 0:03:03.1]}
2... c6 {[%clk 0:03:00.7]} 3. g3 {[%clk 0:02:59]} 3... g6 {[%clk 0:03:00.5]} 4.
Bg2 {[%clk 0:03:00.1]} 4... Bg7 {[%clk 0:03:02.4]} 5. Nf3 {[%clk 0:03:01.7]}
5... O-O {[%clk 0:03:04]} 6. O-O {[%clk 0:03:03.4]} 6... d6 {[%clk 0:03:05.3]}
7. Nc3 {[%clk 0:03:03]} 7... Bf5 {[%clk 0:03:04.9]} 8. Nh4 {[%clk 0:02:58.6]}
8... Be6 {[%clk 0:03:04.6]} 9. b3 {[%clk 0:02:57.5]} 9... Qc8 {[%clk 0:02:59.1]}
10. Bb2 {[%clk 0:02:57.1]} 10... Bh3 {[%clk 0:02:59.5]} 11. e4 {[%clk
0:02:55.9]} 11... Bxg2 {[%clk 0:02:53.7]} 12. Kxg2 {[%clk 0:02:57.8]} 12... Nbd7
{[%clk 0:02:44.2]} 13. Nf3 {[%clk 0:02:54.4]} 13... b5 {[%clk 0:02:25.8]} 14.
cxb5 {[%clk 0:02:52.1]} 14... cxb5 {[%clk 0:02:27.7]} 15. Qe2 {[%clk 0:02:53.1]}
15... b4 {[%clk 0:02:11.3]} 16. Na4 {[%clk 0:02:51.9]} 16... Qb7 {[%clk
0:02:10]} 17. d5 {[%clk 0:02:53.1]} 17... Rac8 {[%clk 0:02:05.9]} 18. Rac1
{[%clk 0:02:52.8]} 18... Rxc1 {[%clk 0:01:50]} 19. Rxc1 {[%clk 0:02:54.7]} 19...
Rc8 {[%clk 0:01:51.3]} 20. Rc4 {[%clk 0:02:46.3]} 20... Qa6 {[%clk 0:00:57.4]}
21. Rxc8+ {[%clk 0:02:44.5]} 21... Qxc8 {[%clk 0:00:58.3]} 22. Nd4 {[%clk
0:02:46.1]} 22... Ne5 {[%clk 0:00:48.3]} 23. f4 {[%clk 0:02:43.9]} 23... Ned7
{[%clk 0:00:37.4]} 24. Nc6 {[%clk 0:02:43.1]} 24... Qe8 {[%clk 0:00:34.1]} 25.
Nxb4 {[%clk 0:02:37.3]} 25... e6 {[%clk 0:00:34.5]} 26. Kf3 {[%clk 0:02:29.8]}
26... exd5 {[%clk 0:00:30.7]} 27. exd5 {[%clk 0:02:31.7]} 27... Qa8 {[%clk
0:00:31.4]} 28. Qc4 {[%clk 0:02:21.3]} 28... h5 {[%clk 0:00:21.6]} 29. h3 {[%clk
0:02:07.9]} 29... Qe8 {[%clk 0:00:20.2]} 30. Qe2 {[%clk 0:02:08.5]} 30... Qa8
{[%clk 0:00:20.8]} 31. Qd3 {[%clk 0:02:09.8]} 31... h4 {[%clk 0:00:19.5]} 32. g4
{[%clk 0:02:09.5]} 32... Qe8 {[%clk 0:00:19]} 33. Bc3 {[%clk 0:02:03.2]} 33...
Kh7 {[%clk 0:00:16.2]} 34. Nc6 {[%clk 0:01:43.2]} 34... Kg8 {[%clk 0:00:17]} 35.
g5 {[%clk 0:01:40.5]} 35... Nh5 {[%clk 0:00:17.7]} 36. Bxg7 {[%clk 0:01:41.7]}
36... Nxg7 {[%clk 0:00:19.5]} 37. Qe4 {[%clk 0:01:42]} 37... Qa8 {[%clk
0:00:18.4]} 38. b4 {[%clk 0:01:38.6]} 38... Nb6 {[%clk 0:00:19.3]} 39. Nc3
{[%clk 0:01:35.9]} 39... Nf5 {[%clk 0:00:19.9]} 40. Nb5 {[%clk 0:01:36.3]} 40...
Kh7 {[%clk 0:00:14.9]} 41. Nbxa7 {[%clk 0:01:24.4]} 41... Qh8 {[%clk 0:00:15.5]}
42. a4 {[%clk 0:01:22.7]} 42... Qc3+ {[%clk 0:00:16]} 43. Kf2 {[%clk 0:01:21.8]}
43... Qd2+ {[%clk 0:00:17.1]} 44. Qe2 {[%clk 0:01:19.9]} 44... Qxf4+ {[%clk
0:00:18.1]} 45. Ke1 {[%clk 0:01:20.7]} 45... Nxd5 {[%clk 0:00:15.8]} 46. Nb5
{[%clk 0:01:13.3]} 46... Qc1+ {[%clk 0:00:15.7]} 47. Kf2 {[%clk 0:01:14]} 47...
Nf4 {[%clk 0:00:15.2]} 48. Qf1 {[%clk 0:01:04.7]} 48... Qxc6 {[%clk 0:00:15.2]}
0-1

[Event "*** Titled Tuesday 3|2 Blitz"]
[Site "Chess.com"]
[Date "2016.10.04"]
[Round "5"]
[White "platy3"]
[Black "josiwales"]
[Result "1-0"]
[WhiteElo "2727"]
[BlackElo "2213"]
[TimeControl "180+2"]
[EndTime "12:02:49 PDT"]
[Termination "platy3 won by resignation"]

1. e4 {[%clk 0:03:02]} 1... c5 {[%clk 0:02:57.3]} 2. Nf3 {[%clk 0:03:03.2]} 2...
Nc6 {[%clk 0:02:56.4]} 3. Bb5 {[%clk 0:03:03.9]} 3... Na5 {[%clk 0:02:55.4]} 4.
O-O {[%clk 0:03:02]} 4... a6 {[%clk 0:02:56.6]} 5. Bd3 {[%clk 0:03:01.3]} 5...
b5 {[%clk 0:02:57.5]} 6. c3 {[%clk 0:02:59.6]} 6... Bb7 {[%clk 0:02:58]} 7. Bc2
{[%clk 0:03:00.9]} 7... e6 {[%clk 0:02:57.9]} 8. d4 {[%clk 0:02:59.9]} 8... c4
{[%clk 0:02:57.5]} 9. Re1 {[%clk 0:02:59.9]} 9... d6 {[%clk 0:02:53.9]} 10. Nbd2
{[%clk 0:03:00.7]} 10... g6 {[%clk 0:02:51.1]} 11. a4 {[%clk 0:03:00.1]} 11...
Bg7 {[%clk 0:02:49.2]} 12. Nf1 {[%clk 0:03:01.3]} 12... Ne7 {[%clk 0:02:49.9]}
13. Ng3 {[%clk 0:03:02.8]} 13... O-O {[%clk 0:02:49]} 14. Bf4 {[%clk 0:03:04]}
14... Nac6 {[%clk 0:02:45.7]} 15. axb5 {[%clk 0:03:03.7]} 15... axb5 {[%clk
0:02:45.9]} 16. Rxa8 {[%clk 0:03:05.4]} 16... Bxa8 {[%clk 0:02:46.8]} 17. Qd2
{[%clk 0:03:06.6]} 17... Qd7 {[%clk 0:02:46.4]} 18. Bh6 {[%clk 0:03:06.8]} 18...
Bb7 {[%clk 0:02:36.5]} 19. Ra1 {[%clk 0:03:07.7]} 19... Ra8 {[%clk 0:02:36.8]}
20. Rxa8+ {[%clk 0:03:08.4]} 20... Bxa8 {[%clk 0:02:38.7]} 21. Qf4 {[%clk
0:03:09.4]} 21... e5 {[%clk 0:02:37.1]} 22. Qh4 {[%clk 0:03:05.8]} 22... f6
{[%clk 0:02:34.5]} 23. d5 {[%clk 0:02:11]} 23... Nd8 {[%clk 0:02:32.3]} 24. Be3
{[%clk 0:02:10.9]} 24... Nf7 {[%clk 0:02:30.9]} 25. Ne1 {[%clk 0:02:07.9]} 25...
Bb7 {[%clk 0:02:20.5]} 26. Bd2 {[%clk 0:02:05.4]} 26... Qc7 {[%clk 0:02:19.4]}
27. b3 {[%clk 0:01:58.5]} 27... Bc8 {[%clk 0:02:05.7]} 28. h3 {[%clk 0:01:55.8]}
28... g5 {[%clk 0:01:52.1]} 29. Qh5 {[%clk 0:01:52.8]} 29... Ng6 {[%clk
0:01:53.1]} 30. Qd1 {[%clk 0:01:49.7]} 30... Nf4 {[%clk 0:01:51.8]} 31. bxc4
{[%clk 0:01:46.2]} 31... bxc4 {[%clk 0:01:51.1]} 32. Qa1 {[%clk 0:01:40.4]}
32... g4 {[%clk 0:01:45.3]} 33. hxg4 {[%clk 0:01:39.1]} 33... Bxg4 {[%clk
0:01:45.3]} 34. Bd1 {[%clk 0:01:40.7]} 34... Bxd1 {[%clk 0:01:45.6]} 35. Qxd1
{[%clk 0:01:39.8]} 35... Ng5 {[%clk 0:01:46.3]} 36. Nf5 {[%clk 0:01:33.9]} 36...
Nxe4 {[%clk 0:01:43.1]} 37. Bxf4 {[%clk 0:01:34.9]} 37... exf4 {[%clk
0:01:43.7]} 38. Qd4 {[%clk 0:01:36]} 38... Ng5 {[%clk 0:01:29.8]} 39. Qxf4
{[%clk 0:01:37]} 39... Bf8 {[%clk 0:01:28.6]} 40. Nc2 {[%clk 0:01:31.8]} 40...
Qa5 {[%clk 0:01:25.5]} 41. Qxc4 {[%clk 0:01:29.3]} 41... Kf7 {[%clk 0:01:10]}
42. f4 {[%clk 0:01:25.9]} 42... Qa7+ {[%clk 0:01:04.8]} 43. Kh1 {[%clk
0:01:19.4]} 43... Qf2 {[%clk 0:00:58.3]} 44. Nce3 {[%clk 0:01:15.1]} 44... Qe1+
{[%clk 0:00:41.9]} 45. Kh2 {[%clk 0:01:15.4]} 45... Nf3+ {[%clk 0:00:10.7]} 46.
gxf3 {[%clk 0:01:13]} 46... Qf2+ {[%clk 0:00:11.5]} 47. Kh1 {[%clk 0:01:08.9]}
47... Qe1+ {[%clk 0:00:12.2]} 48. Qf1 {[%clk 0:01:07.5]} 48... Qxc3 {[%clk
0:00:13.4]} 49. Qh3 {[%clk 0:01:07.2]} 49... Qe1+ {[%clk 0:00:14.4]} 50. Kh2
{[%clk 0:01:06.3]} 50... Qf2+ {[%clk 0:00:15.6]} 51. Ng2 {[%clk 0:01:07.1]}
51... Kg6 {[%clk 0:00:15.9]} 52. Qg4+ {[%clk 0:01:07.4]} 52... Kf7 {[%clk
0:00:16.4]} 53. Qh5+ {[%clk 0:01:08.4]} 53... Kg8 {[%clk 0:00:17.8]} 54. Qe8
{[%clk 0:01:04.1]} 54... Qxf3 {[%clk 0:00:15]} 55. Qe6+ {[%clk 0:01:04.4]} 55...
Kh8 {[%clk 0:00:14.7]} 56. Qf7 {[%clk 0:01:03.6]} 56... h6 {[%clk 0:00:08.3]}
57. Qxf8+ {[%clk 0:01:04.2]} 1-0

[Event "*** Titled Tuesday 3|2 Blitz"]
[Site "Chess.com"]
[Date "2016.10.04"]
[Round "5"]
[White "petrpalachev"]
[Black "brightthunder"]
[Result "1-0"]
[WhiteElo "2404"]
[BlackElo "2377"]
[TimeControl "180+2"]
[EndTime "12:02:54 PDT"]
[Termination "petrpalachev won by resignation"]

1. e4 {[%clk 0:03:02]} 1... c5 {[%clk 0:03:00.2]} 2. Nf3 {[%clk 0:03:01.5]} 2...
e6 {[%clk 0:03:01.3]} 3. c3 {[%clk 0:03:02.2]} 3... Nf6 {[%clk 0:03:01.5]} 4. e5
{[%clk 0:03:02.2]} 4... Nd5 {[%clk 0:03:02.4]} 5. d4 {[%clk 0:03:04.1]} 5...
cxd4 {[%clk 0:03:04]} 6. cxd4 {[%clk 0:03:06]} 6... d6 {[%clk 0:03:05.1]} 7. Bc4
{[%clk 0:03:05.2]} 7... Be7 {[%clk 0:03:04.2]} 8. O-O {[%clk 0:03:04.6]} 8...
O-O {[%clk 0:03:05.1]} 9. Qe2 {[%clk 0:03:05.8]} 9... b6 {[%clk 0:03:06.2]} 10.
Bxd5 {[%clk 0:03:04.7]} 10... exd5 {[%clk 0:03:08.1]} 11. Re1 {[%clk 0:03:00.5]}
11... Nc6 {[%clk 0:02:51.4]} 12. Nc3 {[%clk 0:03:00.1]} 12... Bg4 {[%clk
0:02:26.3]} 13. Qb5 {[%clk 0:02:40.1]} 13... Rc8 {[%clk 0:02:07.2]} 14. Qxd5
{[%clk 0:02:23.1]} 14... Bxf3 {[%clk 0:01:53.4]} 15. gxf3 {[%clk 0:02:09.1]}
15... dxe5 {[%clk 0:01:52.7]} 16. dxe5 {[%clk 0:02:06.8]} 16... Bb4 {[%clk
0:01:39.2]} 17. Qxd8 {[%clk 0:00:30.7]} 17... Rfxd8 {[%clk 0:01:41.1]} 18. Bg5
{[%clk 0:00:23.8]} 18... Re8 {[%clk 0:01:36]} 19. f4 {[%clk 0:00:11.8]} 19...
Nd4 {[%clk 0:01:35.7]} 20. Re4 {[%clk 0:00:11.7]} 20... Nf3+ {[%clk 0:01:01.9]}
21. Kg2 {[%clk 0:00:11.3]} 21... Bxc3 {[%clk 0:00:57.5]} 22. Kxf3 {[%clk
0:00:06]} 22... Bxb2 {[%clk 0:00:56.2]} 23. Rb1 {[%clk 0:00:07.9]} 23... Ba3
{[%clk 0:00:53.4]} 24. Ra4 {[%clk 0:00:05.7]} 24... Rc3+ {[%clk 0:00:50.4]} 25.
Kg2 {[%clk 0:00:06.8]} 25... Bc5 {[%clk 0:00:50.3]} 26. Rxa7 {[%clk 0:00:07.4]}
26... Rc2 {[%clk 0:00:49.3]} 27. Bh4 {[%clk 0:00:07.7]} 27... h6 {[%clk
0:00:47.2]} 28. Rd1 {[%clk 0:00:07.9]} 28... g5 {[%clk 0:00:27.7]} 29. fxg5
{[%clk 0:00:07.9]} 29... hxg5 {[%clk 0:00:27.8]} 30. Bg3 {[%clk 0:00:09.6]}
30... Re7 {[%clk 0:00:25.2]} 31. Rxe7 {[%clk 0:00:09.9]} 31... Bxe7 {[%clk
0:00:27.1]} 32. a4 {[%clk 0:00:08.1]} 32... Ra2 {[%clk 0:00:26.5]} 33. Rd4
{[%clk 0:00:03.6]} 33... Kg7 {[%clk 0:00:27.3]} 34. Rg4 {[%clk 0:00:04.4]} 34...
Kh6 {[%clk 0:00:27.5]} 35. h3 {[%clk 0:00:04.5]} 35... Bc5 {[%clk 0:00:27.7]}
36. h4 {[%clk 0:00:05.2]} 36... gxh4 {[%clk 0:00:27.3]} 37. Rxh4+ {[%clk
0:00:04.8]} 37... Kg6 {[%clk 0:00:28.1]} 38. Rf4 {[%clk 0:00:06.3]} 38... Kg7
{[%clk 0:00:25.4]} 39. Kh3 {[%clk 0:00:07]} 39... Kf8 {[%clk 0:00:26.2]} 40. e6
{[%clk 0:00:07.3]} 40... Ke7 {[%clk 0:00:25.1]} 41. exf7 {[%clk 0:00:08.3]}
41... Kf8 {[%clk 0:00:26.5]} 42. Kg4 {[%clk 0:00:06.7]} 42... Rd2 {[%clk
0:00:25.6]} 43. Rf5 {[%clk 0:00:04.2]} 43... Rd4+ {[%clk 0:00:25.9]} 44. Bf4
{[%clk 0:00:04]} 44... Rxa4 {[%clk 0:00:26.7]} 45. Kh5 {[%clk 0:00:04.6]} 45...
Ra7 {[%clk 0:00:27.5]} 46. Bh6+ {[%clk 0:00:05.2]} 1-0

[Event "*** Titled Tuesday 3|2 Blitz"]
[Site "Chess.com"]
[Date "2016.10.04"]
[Round "5"]
[White "nihalsarin"]
[Black "Keranke"]
[Result "1-0"]
[WhiteElo "2479"]
[BlackElo "2615"]
[TimeControl "180+2"]
[EndTime "12:03:06 PDT"]
[Termination "nihalsarin won by resignation"]

1. Nf3 {[%clk 0:03:01.9]} 1... d5 {[%clk 0:02:20.8]} 2. g3 {[%clk 0:03:01]} 2...
Nf6 {[%clk 0:02:22.1]} 3. Bg2 {[%clk 0:03:02.1]} 3... c6 {[%clk 0:02:23.8]} 4.
O-O {[%clk 0:03:03.3]} 4... g6 {[%clk 0:02:24.3]} 5. d3 {[%clk 0:03:04.4]} 5...
Bg7 {[%clk 0:02:25.9]} 6. Nbd2 {[%clk 0:03:05.5]} 6... O-O {[%clk 0:02:27.6]} 7.
a4 {[%clk 0:03:06.5]} 7... Re8 {[%clk 0:02:26.6]} 8. a5 {[%clk 0:03:05.8]} 8...
e5 {[%clk 0:02:27.8]} 9. e4 {[%clk 0:03:06.8]} 9... Na6 {[%clk 0:02:28.1]} 10.
c3 {[%clk 0:03:06.2]} 10... Nc5 {[%clk 0:02:28.3]} 11. Qe2 {[%clk 0:03:03.8]}
11... dxe4 {[%clk 0:02:21.7]} 12. dxe4 {[%clk 0:03:04]} 12... Qd3 {[%clk
0:02:23.3]} 13. Qxd3 {[%clk 0:02:56.2]} 13... Nxd3 {[%clk 0:02:25.2]} 14. Ne1
{[%clk 0:02:44.2]} 14... Nxc1 {[%clk 0:02:19.7]} 15. Rxc1 {[%clk 0:02:44.9]}
15... Bh6 {[%clk 0:02:19.7]} 16. Rc2 {[%clk 0:02:39.6]} 16... Bg4 {[%clk
0:02:13.4]} 17. Bf3 {[%clk 0:02:19.9]} 17... Be6 {[%clk 0:02:12.7]} 18. Ng2
{[%clk 0:02:10.3]} 18... Rad8 {[%clk 0:02:10.4]} 19. Ne3 {[%clk 0:02:11]} 19...
Bxe3 {[%clk 0:02:08.5]} 20. fxe3 {[%clk 0:02:12.1]} 20... Rd3 {[%clk 0:02:09.9]}
21. Be2 {[%clk 0:02:05.4]} 21... Rxe3 {[%clk 0:01:53.7]} 22. Kf2 {[%clk
0:02:00.4]} 22... Rxe4 {[%clk 0:01:49.1]} 23. Nxe4 {[%clk 0:01:59.7]} 23...
Nxe4+ {[%clk 0:01:51]} 24. Ke3 {[%clk 0:02:00.8]} 24... Bb3 {[%clk 0:01:44.5]}
25. Rcc1 {[%clk 0:01:57.8]} 25... Nd6 {[%clk 0:01:45.5]} 26. a6 {[%clk
0:01:13.9]} 26... b6 {[%clk 0:01:42.1]} 27. Bd1 {[%clk 0:01:08.6]} 27... Bd5
{[%clk 0:01:27.4]} 28. b3 {[%clk 0:01:05.5]} 28... b5 {[%clk 0:01:26.2]} 29. Be2
{[%clk 0:00:58.2]} 29... Bxb3 {[%clk 0:01:25.4]} 30. Bf3 {[%clk 0:00:56.9]}
30... e4 {[%clk 0:01:21.4]} 31. Be2 {[%clk 0:00:58.2]} 31... c5 {[%clk
0:01:04.5]} 32. g4 {[%clk 0:00:50.9]} 32... f5 {[%clk 0:01:00.2]} 33. h3 {[%clk
0:00:49.7]} 33... c4 {[%clk 0:00:58.8]} 34. Kd4 {[%clk 0:00:48.3]} 34... Re6
{[%clk 0:00:51.9]} 35. Kd5 {[%clk 0:00:42.8]} 35... Kf7 {[%clk 0:00:51.3]} 36.
gxf5 {[%clk 0:00:27.6]} 36... Nxf5 {[%clk 0:00:45.5]} 37. Bg4 {[%clk 0:00:27.4]}
37... Kf6 {[%clk 0:00:45]} 38. Bxf5 {[%clk 0:00:22]} 38... gxf5 {[%clk
0:00:45.8]} 39. Rxf5+ {[%clk 0:00:22.6]} 39... Kxf5 {[%clk 0:00:42.9]} 40. Rf1+
{[%clk 0:00:23.8]} 40... Kg5 {[%clk 0:00:44.3]} 41. Kxe6 {[%clk 0:00:24.8]}
41... e3 {[%clk 0:00:46]} 42. Ke5 {[%clk 0:00:24.4]} 42... e2 {[%clk 0:00:42.4]}
43. Rg1+ {[%clk 0:00:24.7]} 43... Kh4 {[%clk 0:00:43.9]} 44. Kf4 {[%clk
0:00:20.8]} 44... Kxh3 {[%clk 0:00:36.2]} 45. Ke3 {[%clk 0:00:20.6]} 45... Bd1
{[%clk 0:00:36.7]} 46. Kd2 {[%clk 0:00:20.3]} 46... h5 {[%clk 0:00:33.3]} 47.
Rg7 {[%clk 0:00:20.8]} 47... h4 {[%clk 0:00:20]} 48. Rxa7 {[%clk 0:00:21.3]}
48... b4 {[%clk 0:00:20.6]} 49. cxb4 {[%clk 0:00:22]} 49... c3+ {[%clk 0:00:22]}
50. Ke1 {[%clk 0:00:23.4]} 50... c2 {[%clk 0:00:22.4]} 51. Rc7 {[%clk
0:00:24.7]} 1-0

[Event "*** Titled Tuesday 3|2 Blitz"]
[Site "Chess.com"]
[Date "2016.10.04"]
[Round "5"]
[White "TomsKantans"]
[Black "RobertoJBM"]
[Result "1-0"]
[WhiteElo "2478"]
[BlackElo "2503"]
[TimeControl "180+2"]
[EndTime "12:03:08 PDT"]
[Termination "TomsKantans won on time"]

1. e4 {[%clk 0:02:59.5]} 1... c6 {[%clk 0:03:00]} 2. d4 {[%clk 0:02:56.9]} 2...
d5 {[%clk 0:02:52]} 3. e5 {[%clk 0:02:52.5]} 3... Bf5 {[%clk 0:02:52]} 4. Nf3
{[%clk 0:02:53.3]} 4... e6 {[%clk 0:02:51.3]} 5. Be2 {[%clk 0:02:54.5]} 5... h6
{[%clk 0:02:48.7]} 6. O-O {[%clk 0:02:54]} 6... Nd7 {[%clk 0:02:46]} 7. Nbd2
{[%clk 0:02:52.4]} 7... Ne7 {[%clk 0:02:47.1]} 8. c4 {[%clk 0:02:46.5]} 8...
dxc4 {[%clk 0:02:45.5]} 9. Nxc4 {[%clk 0:02:48.4]} 9... Nd5 {[%clk 0:02:46.8]}
10. Be3 {[%clk 0:02:45.8]} 10... Be7 {[%clk 0:02:46.6]} 11. Rc1 {[%clk
0:02:46.6]} 11... O-O {[%clk 0:02:47.3]} 12. a3 {[%clk 0:02:45]} 12... N7b6
{[%clk 0:02:47.8]} 13. Na5 {[%clk 0:02:45.3]} 13... Qd7 {[%clk 0:02:47.7]} 14.
Qd2 {[%clk 0:02:45.6]} 14... Rac8 {[%clk 0:02:47.1]} 15. Rfd1 {[%clk 0:02:45.8]}
15... Rfd8 {[%clk 0:02:47.6]} 16. h3 {[%clk 0:02:43.2]} 16... Nxe3 {[%clk
0:02:45.7]} 17. fxe3 {[%clk 0:02:39.8]} 17... Be4 {[%clk 0:02:37.1]} 18. b4
{[%clk 0:02:39.7]} 18... Nd5 {[%clk 0:02:35]} 19. Bd3 {[%clk 0:02:26.7]} 19...
Bxf3 {[%clk 0:02:34.6]} 20. gxf3 {[%clk 0:02:27.6]} 20... Bg5 {[%clk 0:02:34.2]}
21. f4 {[%clk 0:02:20.7]} 21... Be7 {[%clk 0:02:30.1]} 22. Kh2 {[%clk
0:02:00.8]} 22... Kh8 {[%clk 0:02:24.4]} 23. Rg1 {[%clk 0:01:59.6]} 23... Rg8
{[%clk 0:02:24.9]} 24. Bb1 {[%clk 0:01:57]} 24... g6 {[%clk 0:02:14.7]} 25. Rg2
{[%clk 0:01:28.8]} 25... Rg7 {[%clk 0:02:12.5]} 26. Rcg1 {[%clk 0:01:20.1]}
26... Rcg8 {[%clk 0:02:13.2]} 27. Qf2 {[%clk 0:01:09.6]} 27... b6 {[%clk
0:02:10.6]} 28. Nc4 {[%clk 0:01:06.9]} 28... Qd8 {[%clk 0:02:11.2]} 29. e4
{[%clk 0:00:57.3]} 29... Nc3 {[%clk 0:02:03.4]} 30. Bc2 {[%clk 0:00:54.9]} 30...
Nb5 {[%clk 0:02:03.7]} 31. Rd1 {[%clk 0:00:55.5]} 31... Qc7 {[%clk 0:01:18.5]}
32. Qe3 {[%clk 0:00:45.9]} 32... Qd8 {[%clk 0:01:06.7]} 33. Rgd2 {[%clk
0:00:32.2]} 33... Nc7 {[%clk 0:01:06.6]} 34. Bb3 {[%clk 0:00:23.6]} 34... f6
{[%clk 0:00:58.7]} 35. exf6 {[%clk 0:00:23.4]} 35... Bxf6 {[%clk 0:01:00.6]} 36.
Ne5 {[%clk 0:00:24.6]} 36... Qe8 {[%clk 0:00:59.3]} 37. Rc1 {[%clk 0:00:19.1]}
37... Bxe5 {[%clk 0:00:59.2]} 38. dxe5 {[%clk 0:00:21]} 38... Rf8 {[%clk
0:00:56.9]} 39. Rd6 {[%clk 0:00:20.5]} 39... Rgf7 {[%clk 0:00:47]} 40. Rdxc6
{[%clk 0:00:21.6]} 40... Qd8 {[%clk 0:00:23.9]} 41. f5 {[%clk 0:00:17.5]} 41...
gxf5 {[%clk 0:00:18.1]} 42. exf5 {[%clk 0:00:16.2]} 42... Nd5 {[%clk 0:00:11.7]}
43. Bxd5 {[%clk 0:00:13.9]} 1-0